[Event "Titled Tuesday Blitz January 17 Late 2023"]
[White "Arenas, David"]
[Black "Hoffmann, Asa"]
[WhiteFideId "4403177"]
[BlackFideId "2001470"]
[WhiteElo "2426"]
[BlackElo "2185"]
[Result "1-0"]
[Round "05"]
[TimeControl "180+2"]
[Date "2023.01.17"]
[WhiteClock "0:01:07"]
[BlackClock "0:00:50"]

1. e4 {[%clk 0:03:00]}  d6 {[%clk 0:02:47]} 2. d4 {[%clk 0:03:00]}  Nf6 {[%clk 0:02:46]} 3. Nc3 {[%clk 0:02:56]}  c6 {[%clk 0:02:45]} 4. Nf3 {[%clk 0:02:49]}  Bg4 {[%clk 0:02:33]} 5. Be2 {[%clk 0:02:43]}  e6 {[%clk 0:02:33]} 6. O-O {[%clk 0:02:43]}  d5 {[%clk 0:02:32]} 7. e5 {[%clk 0:02:43]}  Nfd7 {[%clk 0:02:32]} 8. h3 {[%clk 0:02:42]}  Bh5 {[%clk 0:02:32]} 9. Nb1 {[%clk 0:02:34]}  c5 {[%clk 0:02:32]} 10. c3 {[%clk 0:02:34]}  Nc6 {[%clk 0:02:31]} 11. Be3 {[%clk 0:02:33]}  Qb6 {[%clk 0:02:31]} 12. Qd2 {[%clk 0:02:26]}  Be7 {[%clk 0:02:26]} 13. a3 {[%clk 0:02:23]}  c4 {[%clk 0:02:23]} 14. Qc1 {[%clk 0:02:22]}  Na5 {[%clk 0:02:21]} 15. Nbd2 {[%clk 0:02:22]}  O-O {[%clk 0:02:16]} 16. Re1 {[%clk 0:02:12]}  Bg6 {[%clk 0:02:08]} 17. Bd1 {[%clk 0:02:10]}  Qc6 {[%clk 0:01:57]} 18. Bc2 {[%clk 0:02:08]}  b5 {[%clk 0:01:55]} 19. Bxg6 {[%clk 0:02:02]}  hxg6 {[%clk 0:01:53]} 20. Qc2 {[%clk 0:02:02]}  Nb7 {[%clk 0:01:47]} 21. Bg5 {[%clk 0:02:00]}  Rfe8 {[%clk 0:01:36]} 22. Bxe7 {[%clk 0:01:56]}  Rxe7 {[%clk 0:01:36]} 23. Nf1 {[%clk 0:01:52]}  a5 {[%clk 0:01:34]} 24. Ne3 {[%clk 0:01:49]}  Qb6 {[%clk 0:01:31]} 25. Ng5 {[%clk 0:01:46]}  Nf8 {[%clk 0:01:28]} 26. f4 {[%clk 0:01:45]}  Nd8 {[%clk 0:01:24]} 27. g4 {[%clk 0:01:43]}  Nc6 {[%clk 0:01:24]} 28. Kh1 {[%clk 0:01:35]}  Rb8 {[%clk 0:01:22]} 29. f5 {[%clk 0:01:31]}  b4 {[%clk 0:01:04]} 30. axb4 {[%clk 0:01:29]}  axb4 {[%clk 0:01:04]} 31. f6 {[%clk 0:01:16]}  gxf6 {[%clk 0:01:03]} 32. exf6 {[%clk 0:01:17]}  Reb7 {[%clk 0:01:01]} 33. Qf2 {[%clk 0:01:16]}  bxc3 {[%clk 0:00:56]} 34. bxc3 {[%clk 0:01:12]}  Qb2 {[%clk 0:00:56]} 35. Qh4 {[%clk 0:01:12]}  Qxc3 {[%clk 0:00:50]} 36. Qh6 {[%clk 0:01:07]} 1-0


[Site "https://www.chess.com"]

[Event "Titled Tuesday Blitz January 17 Late 2023"]
[White "Vasques, Antonio Pedro Freixial"]
[Black "Ansh M Shah"]
[WhiteFideId "1908332"]
[BlackFideId "25033379"]
[WhiteElo "2214"]
[BlackElo "2171"]
[Result "1-0"]
[Round "05"]
[TimeControl "180+2"]
[Date "2023.01.17"]
[WhiteClock "0:00:23"]
[BlackClock "0:01:14"]

1. Nf3 {[%clk 0:03:00]}  Nf6 {[%clk 0:02:59]} 2. g3 {[%clk 0:02:56]}  g6 {[%clk 0:02:59]} 3. Bg2 {[%clk 0:02:57]}  Bg7 {[%clk 0:03:00]} 4. O-O {[%clk 0:02:57]}  O-O {[%clk 0:03:00]} 5. c4 {[%clk 0:02:58]}  c5 {[%clk 0:03:00]} 6. d4 {[%clk 0:02:58]}  cxd4 {[%clk 0:03:01]} 7. Nxd4 {[%clk 0:02:58]}  Nc6 {[%clk 0:03:02]} 8. Nc3 {[%clk 0:02:58]}  a6 {[%clk 0:03:00]} 9. Nxc6 {[%clk 0:02:53]}  bxc6 {[%clk 0:02:57]} 10. Qd2 {[%clk 0:02:46]}  Bb7 {[%clk 0:02:56]} 11. b3 {[%clk 0:02:46]}  d5 {[%clk 0:02:44]} 12. Rb1 {[%clk 0:02:18]}  e6 {[%clk 0:02:37]} 13. Rd1 {[%clk 0:02:13]}  Qe7 {[%clk 0:02:30]} 14. Na4 {[%clk 0:01:37]}  Nd7 {[%clk 0:02:23]} 15. e4 {[%clk 0:01:23]}  d4 {[%clk 0:02:16]} 16. Nb2 {[%clk 0:00:58]}  c5 {[%clk 0:02:08]} 17. Nd3 {[%clk 0:00:58]}  a5 {[%clk 0:02:06]} 18. Ba3 {[%clk 0:00:40]}  Rfc8 {[%clk 0:01:57]} 19. f4 {[%clk 0:00:29]}  Nf6 {[%clk 0:01:52]} 20. Qe2 {[%clk 0:00:27]}  Nd7 {[%clk 0:01:49]} 21. e5 {[%clk 0:00:23]}  Bxg2 {[%clk 0:01:48]} 22. Qxg2 {[%clk 0:00:24]}  Bf8 {[%clk 0:01:47]} 23. Qe4 {[%clk 0:00:18]}  a4 {[%clk 0:01:41]} 24. b4 {[%clk 0:00:18]}  cxb4 {[%clk 0:01:39]} 25. Bxb4 {[%clk 0:00:19]}  Qd8 {[%clk 0:01:36]} 26. Bxf8 {[%clk 0:00:19]}  Nxf8 {[%clk 0:01:37]} 27. c5 {[%clk 0:00:18]}  Nd7 {[%clk 0:01:31]} 28. Qxd4 {[%clk 0:00:18]}  Nxc5 {[%clk 0:01:31]} 29. Qxd8+ {[%clk 0:00:18]}  Rxd8 {[%clk 0:01:29]} 30. Nxc5 {[%clk 0:00:19]}  Rxd1+ {[%clk 0:01:29]} 31. Rxd1 {[%clk 0:00:20]}  Rc8 {[%clk 0:01:29]} 32. Nxa4 {[%clk 0:00:20]}  Rc2 {[%clk 0:01:30]} 33. a3 {[%clk 0:00:19]}  Ra2 {[%clk 0:01:30]} 34. Rd3 {[%clk 0:00:20]}  h5 {[%clk 0:01:30]} 35. h4 {[%clk 0:00:20]}  Kg7 {[%clk 0:01:29]} 36. Nc5 {[%clk 0:00:20]}  Kf8 {[%clk 0:01:27]} 37. a4 {[%clk 0:00:20]}  Kg7 {[%clk 0:01:27]} 38. Rd4 {[%clk 0:00:20]}  f6 {[%clk 0:01:27]} 39. Nxe6+ {[%clk 0:00:19]}  Kf7 {[%clk 0:01:27]} 40. Nd8+ {[%clk 0:00:20]}  Ke7 {[%clk 0:01:27]} 41. Nc6+ {[%clk 0:00:20]}  Kf7 {[%clk 0:01:28]} 42. exf6 {[%clk 0:00:20]}  Kxf6 {[%clk 0:01:28]} 43. a5 {[%clk 0:00:21]}  Kf5 {[%clk 0:01:28]} 44. Nb4 {[%clk 0:00:19]}  Kg4 {[%clk 0:01:29]} 45. Nd3 {[%clk 0:00:18]}  Kxg3 {[%clk 0:01:27]} 46. Ne1 {[%clk 0:00:18]}  Rxa5 {[%clk 0:01:24]} 47. Rd6 {[%clk 0:00:19]}  Kxh4 {[%clk 0:01:14]} 48. Rxg6 {[%clk 0:00:18]}  Rf5 {[%clk 0:01:15]} 49. Kh2 {[%clk 0:00:17]}  Rg5 {[%clk 0:01:07]} 50. fxg5 {[%clk 0:00:18]}  Kg4 {[%clk 0:01:07]} 51. Ng2 {[%clk 0:00:19]}  h4 {[%clk 0:01:07]} 52. Nxh4 {[%clk 0:00:18]}  Kh5 {[%clk 0:01:08]} 53. Rg8 {[%clk 0:00:19]}  Kg4 {[%clk 0:01:07]} 54. g6 {[%clk 0:00:20]}  Kh5 {[%clk 0:01:08]} 55. g7 {[%clk 0:00:21]}  Kh6 {[%clk 0:01:08]} 56. Ra8 {[%clk 0:00:21]}  Kxg7 {[%clk 0:01:08]} 57. Ra6 {[%clk 0:00:22]}  Kh7 {[%clk 0:01:08]} 58. Ng2 {[%clk 0:00:23]}  Kg7 {[%clk 0:01:09]} 59. Kg3 {[%clk 0:00:23]}  Kh7 {[%clk 0:01:10]} 60. Kg4 {[%clk 0:00:24]}  Kg7 {[%clk 0:01:11]} 61. Kf5 {[%clk 0:00:25]}  Kf7 {[%clk 0:01:12]} 62. Ra7+ {[%clk 0:00:25]}  Ke8 {[%clk 0:01:12]} 63. Ke6 {[%clk 0:00:26]}  Kd8 {[%clk 0:01:13]} 64. Rh7 {[%clk 0:00:25]}  Kc8 {[%clk 0:01:14]} 65. Kd6 {[%clk 0:00:26]}  Kb8 {[%clk 0:01:13]} 66. Kc6 {[%clk 0:00:24]}  Kc8 {[%clk 0:01:14]} 67. Rh8# {[%clk 0:00:23]} 1-0


[Site "https://www.chess.com"]

[Event "Titled Tuesday Blitz January 17 Late 2023"]
[White "Liu, Kelsey"]
[Black "Pasti, Aron"]
[WhiteFideId "30944481"]
[BlackFideId "785857"]
[WhiteElo "2065"]
[BlackElo "2361"]
[Result "0-1"]
[Round "05"]
[TimeControl "180+2"]
[Date "2023.01.17"]
[WhiteClock "0:00:03"]
[BlackClock "0:00:34"]

1. e4 {[%clk 0:02:52]}  c5 {[%clk 0:02:57]} 2. Nf3 {[%clk 0:02:51]}  e6 {[%clk 0:02:58]} 3. d4 {[%clk 0:02:40]}  cxd4 {[%clk 0:02:59]} 4. Nxd4 {[%clk 0:02:41]}  Nc6 {[%clk 0:02:59]} 5. Nc3 {[%clk 0:02:40]}  Qc7 {[%clk 0:02:59]} 6. Be3 {[%clk 0:02:38]}  a6 {[%clk 0:03:00]} 7. Qf3 {[%clk 0:02:36]}  Nf6 {[%clk 0:02:58]} 8. O-O-O {[%clk 0:02:36]}  h5 {[%clk 0:02:58]} 9. h3 {[%clk 0:02:36]}  Ne5 {[%clk 0:02:53]} 10. Qg3 {[%clk 0:02:29]}  h4 {[%clk 0:02:48]} 11. Qh2 {[%clk 0:02:29]}  b5 {[%clk 0:02:47]} 12. Bf4 {[%clk 0:02:08]}  d6 {[%clk 0:02:35]} 13. Bxe5 {[%clk 0:02:07]}  dxe5 {[%clk 0:02:34]} 14. Nf3 {[%clk 0:02:08]}  b4 {[%clk 0:02:30]} 15. Nb1 {[%clk 0:01:59]}  Nxe4 {[%clk 0:02:17]} 16. g4 {[%clk 0:01:32]}  Bc5 {[%clk 0:02:06]} 17. Nxe5 {[%clk 0:00:42]}  Nxf2 {[%clk 0:01:59]} 18. Bg2 {[%clk 0:00:42]}  Be3+ {[%clk 0:01:59]} 19. Nd2 {[%clk 0:00:41]}  Rb8 {[%clk 0:01:48]} 20. Bc6+ {[%clk 0:00:35]}  Kf8 {[%clk 0:01:45]} 21. Rhf1 {[%clk 0:00:31]}  Kg8 {[%clk 0:00:46]} 22. Kb1 {[%clk 0:00:07]}  Nxd1 {[%clk 0:00:39]} 23. Rxf7 {[%clk 0:00:07]}  Qd8 {[%clk 0:00:36]} 24. Ne4 {[%clk 0:00:03]}  Nc3+ {[%clk 0:00:34]} 25. bxc3 {[%clk 0:00:03]}  bxc3+ {[%clk 0:00:33]} 26. Ka1 {[%clk 0:00:03]}  Qd1# {[%clk 0:00:34]} 0-1


[Site "https://www.chess.com"]

[Event "Titled Tuesday Blitz January 17 Late 2023"]
[White "Vaglio Munoz, Jaime"]
[Black "Sukandar, Irine Kharisma"]
[WhiteFideId "6500145"]
[BlackFideId "7101937"]
[WhiteElo "2174"]
[BlackElo "2390"]
[Result "1-0"]
[Round "05"]
[TimeControl "180+2"]
[Date "2023.01.17"]
[WhiteClock "0:00:16"]
[BlackClock "0:00:01"]

1. d4 {[%clk 0:03:00]}  Nf6 {[%clk 0:02:59]} 2. c4 {[%clk 0:03:00]}  c5 {[%clk 0:02:59]} 3. d5 {[%clk 0:03:00]}  b5 {[%clk 0:03:00]} 4. a4 {[%clk 0:02:58]}  bxc4 {[%clk 0:02:52]} 5. Nc3 {[%clk 0:02:57]}  g6 {[%clk 0:02:36]} 6. e4 {[%clk 0:02:56]}  Qa5 {[%clk 0:02:25]} 7. Bd2 {[%clk 0:02:53]}  d6 {[%clk 0:02:22]} 8. Bxc4 {[%clk 0:02:50]}  Qb4 {[%clk 0:02:14]} 9. b3 {[%clk 0:02:27]}  Bh6 {[%clk 0:01:52]} 10. Nge2 {[%clk 0:02:13]}  Bxd2+ {[%clk 0:01:49]} 11. Qxd2 {[%clk 0:02:10]}  Ba6 {[%clk 0:01:47]} 12. Bxa6 {[%clk 0:02:08]}  Nxa6 {[%clk 0:01:47]} 13. Qd3 {[%clk 0:01:52]}  Nc7 {[%clk 0:01:36]} 14. O-O {[%clk 0:01:51]}  O-O {[%clk 0:01:36]} 15. Rfb1 {[%clk 0:01:42]}  Rab8 {[%clk 0:01:32]} 16. h3 {[%clk 0:01:35]}  Qa5 {[%clk 0:01:31]} 17. g4 {[%clk 0:01:26]}  Rb4 {[%clk 0:01:28]} 18. g5 {[%clk 0:01:25]}  Nd7 {[%clk 0:01:27]} 19. f4 {[%clk 0:01:24]}  Rfb8 {[%clk 0:01:26]} 20. Nc1 {[%clk 0:01:22]}  Rd4 {[%clk 0:01:20]} 21. Qe3 {[%clk 0:01:17]}  Rdb4 {[%clk 0:01:00]} 22. Ra2 {[%clk 0:01:11]}  c4 {[%clk 0:00:59]} 23. Rab2 {[%clk 0:01:07]}  Qc5 {[%clk 0:00:49]} 24. Kf2 {[%clk 0:01:03]}  Qxe3+ {[%clk 0:00:46]} 25. Kxe3 {[%clk 0:01:03]}  Nc5 {[%clk 0:00:47]} 26. N3a2 {[%clk 0:00:56]}  R4b7 {[%clk 0:00:30]} 27. b4 {[%clk 0:00:55]}  Nxa4 {[%clk 0:00:30]} 28. Rc2 {[%clk 0:00:55]}  Nb5 {[%clk 0:00:29]} 29. Rxc4 {[%clk 0:00:51]}  Na3 {[%clk 0:00:29]} 30. Rc6 {[%clk 0:00:36]}  Nxb1 {[%clk 0:00:28]} 31. Nb3 {[%clk 0:00:36]}  Na3 {[%clk 0:00:23]} 32. f5 {[%clk 0:00:34]}  Nb6 {[%clk 0:00:18]} 33. Na5 {[%clk 0:00:32]}  Rd7 {[%clk 0:00:18]} 34. f6 {[%clk 0:00:31]}  exf6 {[%clk 0:00:17]} 35. gxf6 {[%clk 0:00:32]}  Rc8 {[%clk 0:00:17]} 36. Nc3 {[%clk 0:00:26]}  Rxc6 {[%clk 0:00:17]} 37. dxc6 {[%clk 0:00:26]}  Rd8 {[%clk 0:00:17]} 38. Nd5 {[%clk 0:00:26]}  Nxd5+ {[%clk 0:00:14]} 39. exd5 {[%clk 0:00:27]}  Nb5 {[%clk 0:00:15]} 40. Kd3 {[%clk 0:00:27]}  g5 {[%clk 0:00:14]} 41. Kc4 {[%clk 0:00:23]}  Nc7 {[%clk 0:00:14]} 42. Nb7 {[%clk 0:00:22]}  Rb8 {[%clk 0:00:05]} 43. Nxd6 {[%clk 0:00:22]}  Kf8 {[%clk 0:00:05]} 44. Ne4 {[%clk 0:00:19]}  Ke8 {[%clk 0:00:05]} 45. Nxg5 {[%clk 0:00:19]}  Nxd5 {[%clk 0:00:02]} 46. Kxd5 {[%clk 0:00:19]}  Rb5+ {[%clk 0:00:02]} 47. Kd6 {[%clk 0:00:17]}  Rxb4 {[%clk 0:00:01]} 48. c7 {[%clk 0:00:16]} 1-0


[Site "https://www.chess.com"]

[Event "Titled Tuesday Blitz January 17 Late 2023"]
[White "Slovineanu, Viacheslav"]
[Black "Strahov, Andrej"]
[WhiteFideId "13900510"]
[BlackFideId "4165489"]
[WhiteElo "2412"]
[BlackElo "2398"]
[Result "0-1"]
[Round "05"]
[TimeControl "180+2"]
[Date "2023.01.17"]
[WhiteClock "0:00:03"]
[BlackClock "0:00:39"]

1. d4 {[%clk 0:02:57]}  Nf6 {[%clk 0:02:57]} 2. Nf3 {[%clk 0:02:57]}  d5 {[%clk 0:02:56]} 3. c4 {[%clk 0:02:57]}  e6 {[%clk 0:02:57]} 4. e3 {[%clk 0:02:57]}  c6 {[%clk 0:02:56]} 5. Nbd2 {[%clk 0:02:56]}  Be7 {[%clk 0:02:53]} 6. Bd3 {[%clk 0:02:56]}  O-O {[%clk 0:02:53]} 7. O-O {[%clk 0:02:55]}  dxc4 {[%clk 0:02:53]} 8. Nxc4 {[%clk 0:02:55]}  c5 {[%clk 0:02:54]} 9. dxc5 {[%clk 0:02:52]}  Bxc5 {[%clk 0:02:53]} 10. a3 {[%clk 0:02:52]}  b5 {[%clk 0:02:47]} 11. Nce5 {[%clk 0:02:48]}  a6 {[%clk 0:02:45]} 12. b4 {[%clk 0:02:45]}  Bd6 {[%clk 0:02:45]} 13. Bb2 {[%clk 0:02:44]}  Bb7 {[%clk 0:02:43]} 14. Rc1 {[%clk 0:02:42]}  Qe7 {[%clk 0:02:40]} 15. Qc2 {[%clk 0:01:52]}  h6 {[%clk 0:02:37]} 16. h3 {[%clk 0:01:45]}  Rd8 {[%clk 0:02:34]} 17. Rfd1 {[%clk 0:01:43]}  Nd5 {[%clk 0:02:30]} 18. Bh7+ {[%clk 0:01:34]}  Kh8 {[%clk 0:02:29]} 19. Be4 {[%clk 0:01:33]}  Nd7 {[%clk 0:02:12]} 20. Nc6 {[%clk 0:01:18]}  Bxc6 {[%clk 0:02:08]} 21. Qxc6 {[%clk 0:01:19]}  N7f6 {[%clk 0:02:08]} 22. Bxf6 {[%clk 0:01:09]}  Nxf6 {[%clk 0:01:24]} 23. Qxa8 {[%clk 0:01:08]}  Rxa8 {[%clk 0:01:24]} 24. Bxa8 {[%clk 0:01:08]}  g6 {[%clk 0:01:20]} 25. Nd4 {[%clk 0:01:04]}  Kg7 {[%clk 0:01:13]} 26. Bf3 {[%clk 0:00:59]}  e5 {[%clk 0:01:12]} 27. Nc6 {[%clk 0:00:54]}  Qe6 {[%clk 0:01:11]} 28. e4 {[%clk 0:00:50]}  h5 {[%clk 0:01:08]} 29. Rc3 {[%clk 0:00:45]}  g5 {[%clk 0:01:06]} 30. Na5 {[%clk 0:00:38]}  g4 {[%clk 0:01:04]} 31. hxg4 {[%clk 0:00:35]}  hxg4 {[%clk 0:01:05]} 32. Be2 {[%clk 0:00:35]}  Nxe4 {[%clk 0:01:05]} 33. Rc6 {[%clk 0:00:30]}  Qf5 {[%clk 0:01:02]} 34. Rf1 {[%clk 0:00:17]}  Be7 {[%clk 0:00:51]} 35. Bd3 {[%clk 0:00:17]}  Qf4 {[%clk 0:00:49]} 36. Bxe4 {[%clk 0:00:16]}  Qxe4 {[%clk 0:00:49]} 37. Rxa6 {[%clk 0:00:16]}  Bg5 {[%clk 0:00:45]} 38. Rc6 {[%clk 0:00:15]}  g3 {[%clk 0:00:42]} 39. fxg3 {[%clk 0:00:14]}  Be3+ {[%clk 0:00:43]} 40. Kh2 {[%clk 0:00:12]}  Qg4 {[%clk 0:00:43]} 41. Rxf7+ {[%clk 0:00:03]}  Kxf7 {[%clk 0:00:42]} 42. Rc7+ {[%clk 0:00:03]}  Kg8 {[%clk 0:00:39]} 0-1


[Site "https://www.chess.com"]

[Event "Titled Tuesday Blitz January 17 Late 2023"]
[White "Jenkins, Drake"]
[Black "Leenhouts, Koen"]
[WhiteFideId "2022397"]
[BlackFideId "1008439"]
[WhiteElo "2130"]
[BlackElo "2447"]
[Result "0-1"]
[Round "05"]
[TimeControl "180+2"]
[Date "2023.01.17"]
[WhiteClock "0:00:01"]
[BlackClock "0:00:05"]

1. Nf3 {[%clk 0:02:51]}  Nf6 {[%clk 0:02:52]} 2. c4 {[%clk 0:02:52]}  c6 {[%clk 0:02:49]} 3. g3 {[%clk 0:02:52]}  d5 {[%clk 0:02:46]} 4. Bg2 {[%clk 0:02:52]}  e6 {[%clk 0:02:37]} 5. O-O {[%clk 0:02:52]}  Be7 {[%clk 0:02:36]} 6. d3 {[%clk 0:02:53]}  O-O {[%clk 0:02:36]} 7. Nbd2 {[%clk 0:02:53]}  a5 {[%clk 0:02:34]} 8. b3 {[%clk 0:02:48]}  a4 {[%clk 0:02:33]} 9. bxa4 {[%clk 0:02:46]}  Qa5 {[%clk 0:02:30]} 10. Nb3 {[%clk 0:02:42]}  Qxa4 {[%clk 0:02:28]} 11. cxd5 {[%clk 0:02:42]}  exd5 {[%clk 0:02:14]} 12. Bb2 {[%clk 0:02:38]}  Bf5 {[%clk 0:02:02]} 13. h3 {[%clk 0:02:33]}  Nbd7 {[%clk 0:01:55]} 14. Qc1 {[%clk 0:02:28]}  Bg6 {[%clk 0:01:47]} 15. Nh4 {[%clk 0:02:24]}  Rfe8 {[%clk 0:01:43]} 16. Nxg6 {[%clk 0:02:23]}  hxg6 {[%clk 0:01:44]} 17. Bf3 {[%clk 0:02:06]}  Ba3 {[%clk 0:01:43]} 18. Kg2 {[%clk 0:02:00]}  Bxb2 {[%clk 0:01:33]} 19. Qxb2 {[%clk 0:02:01]}  Qa3 {[%clk 0:01:26]} 20. Qc2 {[%clk 0:01:45]}  Ne5 {[%clk 0:01:11]} 21. Rfb1 {[%clk 0:01:38]}  Nxf3 {[%clk 0:01:10]} 22. Kxf3 {[%clk 0:01:37]}  Qe7 {[%clk 0:01:01]} 23. Rb2 {[%clk 0:01:29]}  Rac8 {[%clk 0:00:55]} 24. Kg2 {[%clk 0:01:27]}  c5 {[%clk 0:00:55]} 25. a4 {[%clk 0:01:16]}  c4 {[%clk 0:00:50]} 26. Na5 {[%clk 0:00:50]}  c3 {[%clk 0:00:36]} 27. Rxb7 {[%clk 0:00:37]}  Qxe2 {[%clk 0:00:35]} 28. Rc1 {[%clk 0:00:37]}  Qe6 {[%clk 0:00:24]} 29. Nb3 {[%clk 0:00:25]}  Qc6 {[%clk 0:00:21]} 30. Rb5 {[%clk 0:00:21]}  d4+ {[%clk 0:00:20]} 31. Kg1 {[%clk 0:00:20]}  Rcd8 {[%clk 0:00:20]} 32. Rb4 {[%clk 0:00:15]}  g5 {[%clk 0:00:14]} 33. Rxd4 {[%clk 0:00:10]}  Rxd4 {[%clk 0:00:11]} 34. Nxd4 {[%clk 0:00:11]}  Qd7 {[%clk 0:00:10]} 35. Kh2 {[%clk 0:00:04]}  Qxd4 {[%clk 0:00:06]} 36. Kg1 {[%clk 0:00:02]}  Nd5 {[%clk 0:00:06]} 37. a5 {[%clk 0:00:01]}  Qe5 {[%clk 0:00:05]} 0-1


[Site "https://www.chess.com"]

[Event "Titled Tuesday Blitz January 17 Late 2023"]
[White "Wang, Alexander J"]
[Black "Ladan, Nicholas"]
[WhiteFideId "30955270"]
[BlackFideId "30918855"]
[WhiteElo "1815"]
[BlackElo "2228"]
[Result "1-0"]
[Round "05"]
[TimeControl "180+2"]
[Date "2023.01.17"]
[WhiteClock "0:00:34"]
[BlackClock "0:00:06"]

1. e4 {[%clk 0:03:00]}  e5 {[%clk 0:01:05]} 2. Nf3 {[%clk 0:02:59]}  Nc6 {[%clk 0:01:06]} 3. Bb5 {[%clk 0:02:58]}  a6 {[%clk 0:01:06]} 4. Ba4 {[%clk 0:02:58]}  g6 {[%clk 0:01:06]} 5. O-O {[%clk 0:02:55]}  Bg7 {[%clk 0:01:07]} 6. c3 {[%clk 0:02:55]}  b5 {[%clk 0:01:05]} 7. Bc2 {[%clk 0:02:54]}  Nge7 {[%clk 0:01:05]} 8. a3 {[%clk 0:02:50]}  O-O {[%clk 0:01:05]} 9. d4 {[%clk 0:02:47]}  d5 {[%clk 0:01:02]} 10. exd5 {[%clk 0:02:45]}  Nxd5 {[%clk 0:01:01]} 11. dxe5 {[%clk 0:02:42]}  Nxe5 {[%clk 0:00:58]} 12. Nxe5 {[%clk 0:02:42]}  Bxe5 {[%clk 0:00:59]} 13. Nd2 {[%clk 0:02:33]}  c6 {[%clk 0:00:56]} 14. Nf3 {[%clk 0:02:32]}  Bg7 {[%clk 0:00:55]} 15. h3 {[%clk 0:02:31]}  Be6 {[%clk 0:00:51]} 16. a4 {[%clk 0:02:21]}  h6 {[%clk 0:00:49]} 17. axb5 {[%clk 0:02:20]}  axb5 {[%clk 0:00:48]} 18. Rxa8 {[%clk 0:02:19]}  Qxa8 {[%clk 0:00:48]} 19. Re1 {[%clk 0:02:15]}  Rd8 {[%clk 0:00:44]} 20. Qe2 {[%clk 0:02:08]}  Qa2 {[%clk 0:00:34]} 21. Bxg6 {[%clk 0:02:04]}  fxg6 {[%clk 0:00:29]} 22. Qxe6+ {[%clk 0:02:03]}  Kh7 {[%clk 0:00:30]} 23. Ne5 {[%clk 0:01:52]}  Qb1 {[%clk 0:00:23]} 24. Nf7 {[%clk 0:01:39]}  Rf8 {[%clk 0:00:17]} 25. Bxh6 {[%clk 0:01:34]}  Bxh6 {[%clk 0:00:11]} 26. Rxb1 {[%clk 0:01:29]}  Bg7 {[%clk 0:00:07]} 27. Ng5+ {[%clk 0:01:27]}  Kh6 {[%clk 0:00:07]} 28. Nf3 {[%clk 0:01:26]}  Nf4 {[%clk 0:00:07]} 29. Qg4 {[%clk 0:01:20]}  Ne2+ {[%clk 0:00:05]} 30. Kh1 {[%clk 0:01:16]}  Rf4 {[%clk 0:00:05]} 31. Qg5+ {[%clk 0:01:13]}  Kh7 {[%clk 0:00:06]} 32. Re1 {[%clk 0:01:11]}  Rf5 {[%clk 0:00:05]} 33. Qh4+ {[%clk 0:01:09]}  Rh5 {[%clk 0:00:05]} 34. Qe7 {[%clk 0:01:02]}  Nf4 {[%clk 0:00:05]} 35. Qf7 {[%clk 0:00:58]}  Rf5 {[%clk 0:00:04]} 36. Qa7 {[%clk 0:00:55]}  Nd5 {[%clk 0:00:02]} 37. Re7 {[%clk 0:00:52]}  Nxe7 {[%clk 0:00:02]} 38. Qxe7 {[%clk 0:00:52]}  Kh6 {[%clk 0:00:02]} 39. Nd4 {[%clk 0:00:49]}  Bxd4 {[%clk 0:00:02]} 40. cxd4 {[%clk 0:00:48]}  Rd5 {[%clk 0:00:03]} 41. Qf6 {[%clk 0:00:47]}  c5 {[%clk 0:00:03]} 42. dxc5 {[%clk 0:00:47]}  Rxc5 {[%clk 0:00:03]} 43. Qf8+ {[%clk 0:00:44]}  Kh5 {[%clk 0:00:03]} 44. Qf3+ {[%clk 0:00:44]}  Kh4 {[%clk 0:00:04]} 45. Qf4+ {[%clk 0:00:38]}  Kh5 {[%clk 0:00:04]} 46. g4+ {[%clk 0:00:38]}  Kh4 {[%clk 0:00:04]} 47. Qh6+ {[%clk 0:00:37]}  Rh5 {[%clk 0:00:03]} 48. gxh5 {[%clk 0:00:37]}  g5 {[%clk 0:00:04]} 49. Qd6 {[%clk 0:00:33]}  b4 {[%clk 0:00:04]} 50. Qg3+ {[%clk 0:00:33]}  Kxh5 {[%clk 0:00:04]} 51. Qg4+ {[%clk 0:00:33]}  Kh6 {[%clk 0:00:04]} 52. Qxb4 {[%clk 0:00:34]}  Kh5 {[%clk 0:00:04]} 53. Kg2 {[%clk 0:00:34]}  g4 {[%clk 0:00:04]} 54. hxg4+ {[%clk 0:00:34]}  Kh4 {[%clk 0:00:05]} 55. g5+ {[%clk 0:00:34]}  Kh5 {[%clk 0:00:05]} 56. g6 {[%clk 0:00:34]}  Kh6 {[%clk 0:00:05]} 57. g7 {[%clk 0:00:34]}  Kh7 {[%clk 0:00:05]} 58. g8=Q+ {[%clk 0:00:34]}  Kh6 {[%clk 0:00:06]} 59. Qh4# {[%clk 0:00:34]} 1-0


[Site "https://www.chess.com"]